Cogmind - Beta 9.6 @@@ ROGUE MODE // 2020.08.26 @ 23:04:52 Player: Henry Result: Destroyed by G-34 Mercenary with Small Laser Performance ------------- Evolutions (1) 500 Regions Visited (2) 400 Robots Destroyed (15) 75 Value Destroyed (381) 381 Prototype IDs (0) 0 Alien Tech Used (0) 0 Bonus (0) 0 TOTAL SCORE: 1356 Bonus ------- None Cogmind --------- Core Integrity 0/400 Matter 237/300 Energy 100/100 System Corruption 3% Temperature Cool (6) Movement Core (400) Ox7 Location -9/Materials Parts ------- > --- POWER (1) -------- (None) > --- PROPULSION (2) --- (None) > --- UTILITY (2) ------ Medium Storage Unit Large Storage Unit > --- WEAPON (4) ------- (None) > --- INVENTORY (14) --- Signal Interpreter Terrain Scanner Improved Terrain Scanner Seismic Analyzer Grenade Launcher Peak State ------------ > --- POWER ------------ Light Ion Engine > --- PROPULSION ------- Wheel Compact Wheel > --- UTILITY ---------- Medium Storage Unit Large Storage Unit > --- WEAPON ----------- Assault Rifle Light Assault Rifle Light Assault Rifle Light Cannon > --- INVENTORY -------- Ion Engine Wheel Signal Interpreter Terrain Scanner Improved Terrain Scanner Seismic Analyzer Medium Laser Beam Rifle Grenade Launcher [Rating: 10] Favorites ----------- Power Light Ion Engine Engine Light Ion Engine Propulsion Wheel Wheel Wheel Utility Medium Storage Unit Storage Medium Storage Unit Weapon Light Assault Rifle Energy Gun Beam Rifle Ballistic Gun Light Assault Rifle Ballistic Cannon Light Cannon Launcher Grenade Launcher Special Weapon Mining Laser Build | -11 -10 -9 ------- Run | Scr Mat Mat Slots Evolved 2 | . . 2 Power . | . . . Propulsion . | . . . Utility . | . . . Weapon 2 | . . 2 Parts Attached 22 | 6 5 11 Power 2 | 1 . 1 Engine 2 | 1 . 1 Core . | . . . Reactor . | . . . Propulsion 3 | 2 . 1 Treads . | . . . Leg . | . . . Wheel 3 | 2 . 1 Hover . | . . . Flight . | . . . Utility 4 | 1 3 . Device . | . . . Storage 4 | 1 3 . Processor . | . . . Hackware . | . . . Protection . | . . . Artifact . | . . . Weapon 13 | 2 2 9 Energy Gun 3 | . . 3 Energy Cannon . | . . . Ballistic Gun 4 | 2 1 1 Ballistic Cannon 1 | . . 1 Launcher 1 | . 1 . Special Weapon 4 | . . 4 Impact Weapon . | . . . Slashing Weapon . | . . . Piercing Weapon . | . . . Special Melee Weapon . | . . . Unidentified Prototypes . | . . . Parts Lost 16 | . . 16 Power 2 | . . 2 Propulsion 3 | . . 3 Utility . | . . . Weapon 11 | . . 11 Highest Loss Streak 13 | . . 13 Average Slot Usage (%) 85 | . 96 70 Engine 11 | . 14 7 Wheel 22 | . 28 13 Storage 23 | . 24 22 Energy Gun 2 | . . 6 Ballistic Gun 20 | . 27 10 Ballistic Cannon 3 | . . 7 Naked Turns . | . . . Heaviest Build 36 | 10 32 36 Greatest Support 26 | 26 26 26 Greatest Overweight (x) 7 | 2 1 7 Average Overweight (x) . | . . 2 Largest Inventory Capacity 14 | 6 14 14 Average Capacity 12 | 5 11 14 Most Carried 11 | 2 11 10 Average Carried 6 | 1 6 7 Final Capacity 14 | 6 14 14 Final Carried 11 | 2 11 5 Class Distribution -------------------- 89% | Mutant 10% | Gunner Dominant Class ---------------- Mutant | -10/Materials Mutant | -9/Materials Resources | -11 -10 -9 ----------- Run | Scr Mat Mat Matter Collected 546 | 280 112 154 Remotely . | . . . Salvage Created 458 | 76 163 219 Parts 26 | . 15 11 Haulers Intercepted . | . . . Recyclers Shooed 1 | . 1 . Parts Field Recycled . | . . . Retrieved Matter . | . . . Parts Self-Destructed . | . . . Prevented . | . . . Kills | -11 -10 -9 ------- Run | Scr Mat Mat Combat Hostiles Destroyed 11 | . 5 6 Guns 3 | . . 3 Cannons 3 | . . 3 AOE 5 | . 5 . Classes Destroyed 5 | 1 3 1 Recycler 2 | 1 1 . Watcher 2 | . 2 . Swarmer 3 | . 3 . Grunt 6 | . 2 4 Sentry 2 | . . 2 Best Kill Streak 6 | 1 6 2 Combat Bots Only 5 | . 5 2 Max Kills in Single Turn 3 | 1 3 1 Gunslinging . | . . . Exploded 3 | . 3 . Melee . | . . . Uniques/NPCs Destroyed . | . . . Combat | -11 -10 -9 -------- Run | Scr Mat Mat Damage Taken 1547 | . 131 1416 Core 408 | . 6 402 Absorbed by Shields . | . . . Core Remaining (%) 98 | 100 97 . Volleys Fired 59 | 5 11 43 Largest 4 | 2 2 4 Hottest 200 | 40 50 200 Shots Fired 122 | 10 22 90 Gun 74 | 10 20 44 Cannon 39 | . . 39 Launcher 2 | . 2 . Special 7 | . . 7 Kinetic 105 | 10 20 75 Thermal 15 | . . 15 Explosive 2 | . 2 . Electromagnetic . | . . . Robot Hit Streak 9 | 6 3 9 Robot Miss Streak 5 | 1 4 5 Penetration Max . | . . . Secondary Targets . | . . . Shots Hit Robots 75 | 8 13 54 Core Hits 27 | 2 12 13 Critical Hits . | . . . Critical Kills . | . . . Critical Parts Destroyed . | . . . Melee Attacks . | . . . Impact . | . . . Slashing . | . . . Piercing . | . . . Sneak Attacks . | . . . Combat Hostiles . | . . . Follow-up Attacks . | . . . Damage Inflicted 1182 | 81 403 698 Guns 395 | 81 107 207 Cannons 426 | . . 426 Explosions 296 | . 296 . Melee . | . . . Ramming 17 | . . 17 Kinetic 807 | 81 107 619 Thermal 62 | . . 62 Explosive 296 | . 296 . Electromagnetic . | . . . Impact . | . . . Slashing . | . . . Piercing . | . . . Highest Corruption 3 | . . 3 Average Corruption 2 | . . 2 Corruption Purged . | . . . Overload Shots . | . . . Overflow Damage 18 | . . 18 Projectiles 18 | . . 18 Explosions . | . . . Melee . | . . . Knockbacks 9 | . . 9 Impact . | . . . Kinetic 5 | . . 5 Secondary 4 | . . 4 Self-Inflicted Damage 7 | . . 7 Shots . | . . . Rammed 4 | . . 4 Targets Rammed 4 | . . 4 Kicked . | . . . Crushed . | . . . Highest Temperature 355 | . . 355 Average Temperature 95 | . . 95 Received Heat Transfer 771 | . 6 765 Siege Activations . | . . . Robots Corrupted . | . . . Combat Hostiles . | . . . Parts Fried . | . . . Impact Corruptions . | . . . Robots Melted . | . . . Combat Hostiles . | . . . Parts Melted . | . . . Heat Transferred 137 | . . 137 Parts Sabotaged . | . . . Parts Stolen . | . . . Parts Stripped . | . . . Power Chain Reactions . | . . . Missiles Intercepted . | . . . Alert | -11 -10 -9 ------- Run | Scr Mat Mat Peak Influence 217 | 5 217 211 Average Influence 103 | 1 85 149 Maximum Alert Level 1 | . 1 1 Low Security (%) 82 | 100 70 95 Level 1 17 | . 29 4 Level 2 . | . . . Level 3 . | . . . Level 4 . | . . . Level 5 . | . . . High Security . | . . . Max Security . | . . . Squads Dispatched 1 | . 1 . Investigation . | . . . Extermination . | . . . Reinforcement 1 | . 1 . Assault . | . . . Garrison . | . . . Intercept . | . . . Construction Impeded . | . . . Haulers Reinforced . | . . . Stealth | -11 -10 -9 --------- Run | Scr Mat Mat Distress Signals 2 | . 2 . Communications Jammed . | . . . Distress Signals . | . . . Times Spotted 20 | . 11 9 Peak Tracking Total 7 | . 7 4 Tactical Retreats 1 | . . 1 Traps | -11 -10 -9 ------- Run | Scr Mat Mat Traps Triggered . | . . . Indirectly . | . . . Trap Hack Attempts . | . . . Triggered . | . . . Disarmed . | . . . Reprogrammed . | . . . Reused . | . . . Traps Extracted . | . . . Installed . | . . . Triggered . | . . . Machines | -11 -10 -9 ---------- Run | Scr Mat Mat Machines Disabled . | . . . Max in Single Turn . | . . . Machines Sabotaged . | . . . Garrisons Compromised . | . . . Overloaded Fab Kills . | . . . Fab Network Shutdowns . | . . . Hacking | -11 -10 -9 --------- Run | Scr Mat Mat Machines Accessed 3 | . 2 1 Terminals 3 | . 2 1 Fabricators . | . . . Repair Stations . | . . . Recycling Units . | . . . Scanalyzers . | . . . Garrison Access . | . . . Total Hacks 9 | . 7 2 Successful 2 | . 1 1 Failed 7 | . 6 1 Catastrophic . | . . . Database Lockouts . | . . . Manual 9 | . 7 2 Terminals 9 | . 7 2 Fabricators . | . . . Repair Stations . | . . . Recycling Units . | . . . Scanalyzers . | . . . Garrison Access . | . . . Terminal Hacks . | . . . Fabricator Hacks . | . . . Repair Station Hacks . | . . . Recycling Unit Hacks . | . . . Scanalyzer . | . . . Garrison Access Hacks . | . . . Unauthorized Hacks 2 | . 1 1 Terminals 2 | . 1 1 Botnet 2 | . 1 1 Fabricators . | . . . Repair Stations . | . . . Recycling Units . | . . . Scanalyzers . | . . . Garrison Access . | . . . Data Cores Recovered . | . . . Used . | . . . Hacking Detections 3 | . 2 1 Full Trace Events . | . . . Feedback Events . | . . . Feedback Blocked . | . . . Robot Schematics Acquired . | . . . Robots Built . | . . . Matter . | . . . Time . | . . . Total Robot Build Rating . | . . . Part Schematics Acquired . | . . . Parts Built . | . . . Matter . | . . . Time . | . . . Total Part Build Rating . | . . . Parts Repaired . | . . . Time . | . . . Parts Recycled . | . . . Recycled Matter . | . . . Retrieved Matter . | . . . Retrieved Components . | . . . Parts Scanalyzed . | . . . Part Schematics Acquired . | . . . Parts Damaged . | . . . Bothacking | -11 -10 -9 ------------ Run | Scr Mat Mat Used RIF Installer . | . . . Robots Hacked . | . . . Non-combat . | . . . Combat . | . . . Robot Hacks Applied . | . . . Relay Couplers Released . | . . . Robots Rewired . | . . . Allies Hacked . | . . . Hacks Repelled . | . . . Allies | -11 -10 -9 -------- Run | Scr Mat Mat Total Allies . | . . . Largest Group . | . . . Highest-Rated Group . | . . . Highest-Rated Ally . | . . . Total Orders . | . . . Ally Attacks . | . . . Total Damage . | . . . Kills . | . . . Allies Corrupted . | . . . Allies Melted . | . . . Intel | -11 -10 -9 ------- Run | Scr Mat Mat Robot Analysis Total . | . . . Derelict Logs Recovered . | . . . Drone Launches . | . . . Drone Recoveries . | . . . Exploration | -11 -10 -9 ------------- Run | Scr Mat Mat Turns Passed 727 | 58 385 284 Spaces Moved 494 | 38 356 100 Core 14 | 5 . 9 Treads . | . . . Legs . | . . . Wheels 480 | 33 356 91 Hover . | . . . Flight . | . . . Fastest Speed 50 | 50 90 90 Average Speed 101 | 88 94 130 Slowest Speed 400 | 150 100 400 Overloaded Moves . | . . . Propulsion Burnouts . | . . . Robots Hopped . | . . . Cave-ins Triggered . | . . . Exploration Rate (%) 21 | 3 50 12 Regions Visited 2 Branch Regions . Pre-discovered Areas . | . . . Known Exits Taken . | . . . Unknown Exits Taken 2 | 1 1 . Scrap Searched . | . . . Spaces Dug . | . . . Terrain Destroyed 19 | . 16 3 Melee . | . . . Projectile 3 | . . 3 AOE 16 | . 16 . Actions | -11 -10 -9 --------- Run | Scr Mat Mat Total 597 | 50 383 164 Wait 6 | . . 6 Move 492 | 37 355 100 Hop . | . . . Pick Up 11 | 2 9 . Fast Attach 13 | 6 2 5 Attach 6 | . . 6 Detach 1 | . 1 . Swap 3 | . 3 . Drop 2 | . 2 . Fire 59 | 5 11 43 Melee . | . . . Ram 4 | . . 4 Kick . | . . . Crush . | . . . Escape Stasis . | . . . Rewire . | . . . Trap . | . . . Miscellaneous . | . . . Route ------- -11/Scrapyard -10/Materials -9/Materials History --------- Turn | Location | Event 2 | -11/Scrapyard | Met Revision 17 21 | -11/Scrapyard | Discovered new exit (range 14) 59 | -11/Scrapyard | Entered Materials 305 | -10/Materials | Build established: Mutant 314 | -10/Materials | Discovered new exit (range 14) 444 | -10/Materials | Entered another Materials area 444 | -9/Materials | Evolved 2 slots: Weapon x2 561 | -9/Materials | Lost 3 parts (1n2w) 674 | -9/Materials | Core integrity fell below 50% 706 | -9/Materials | Core integrity fell below 20% 725 | -9/Materials | Lost 13 parts (2p2n9w) 728 | -9/Materials | Destroyed by G-34 Mercenary with Small Laser Last Messages --------------- 00663_ K-01 Serf collects debris. 00669_ R-06 Scavenger collects Wheel. 00670_ K-01 Serf collects debris. 00671_ U-05 Engineer builds a Wall. 00675_ K-01 Serf collects debris. 00676_ U-05 Engineer lays Concrete. 00677_ Mining Laser destroyed. 00677_ U-05 Engineer lays Concrete. 00679_ Mining Laser destroyed. 00679_ K-01 Serf collects debris. 00682_ Slammed into G-47 Trooper. 00682_ Destabilizing: System corrupted (+1). 00683_ Slammed into G-47 Trooper. 00683_ Destabilizing: System corrupted (+2). 00684_ Wheel destroyed. 00684_ Slammed into G-47 Trooper. 00689_ Ion Engine permanently disabled. 00689_ Destabilizing: Short circuit. 00694_ Broken Ion Engine destroyed. 00706_ Acquired 35 matter. Map ----- +----------------------------------------------------+ | ??????????????????????????????#####???????????? | | ??????????????????????????????# ###########?? | | ??????????????????????????????# # #?? | | ??????????????????????????????# # """ """ #?? | | ??????????????????????????????# # "R" """ #?? | | ??????????????????????????????# # " " """ #?? | | ??????????????????????????????# + #?? | | ??????????????????????????????# # #?? | | ??????????????????????????????# # ! #?? | | ??????????????????????????????# # #?? | | ??????????????????????????????# #######+###?? | | ??????????????????????????????# #?????# #???? | | ??????????????????????????????# #?????# #???? | | ??????????????????????????????# #?????# #???? | | ??????????????????????????????#+#+#?????# #???? | | ????????????????????????????????????????# #???? | | ????????????????????????????????? ??????# #???? | | ????????????????????????????????""??????# #???? | | ??????????????????????????????? ""??????# #???? | | ??????????????????????????????" "???????# #???? | | ????????????????????????????? ????????# #???? | | ????????????????#######???###u####+#????# #???? | | ??? ########## % ##### ## ###### #???? | | ??? ## #???? | | ??? a k g % % ####???? | | ??? k g @ # #??????? | | ??? ########## % ##### # #??????? | | ??????????????#####/############# #??????? | | ??????????????# #?????# #??????? | | ??????????????# #???? + + ?????? | | ??????????????# * #???""# # ???? | | ??????????????#"" =*% !#??""?# #?/##??? | | ??????????????#"T =* #?????# ??#???? | | ??????????????#"" #?????# ?????? | | ??????????????# ! #?????# ????? | | ??????????????#############?????# #???? | | ????????????????????????????????# #???? | | ????????????????????????????????######### ????? | | ??????????????????????????????????????????????? | | ??????????????????????????????????????????????? | | ??????????????????????????????????????????????? | | ??????????????????????????????????????????????? | | ??????????????????????????????????????????????? | | ??????????????????????????????????????????????? | | ??????????????????????????????????????????????? | | ??????????????????????????????????????????????? | | ??????????????????????????????????????????????? | | ??????????????????????????????????????????????? | | ??????????????????????????????????????????????? | | ??????????????????????????????????????????????? | +----------------------------------------------------+ Best States ------------- Heat Dissipation 28 Energy Generation 10 Energy Capacity 250 Matter Stores 300 Matter Capacity 300 Sight Range 16 Terrain Scan Density 10 Evasion (%) 42 Item Schematics ----------------- None Robot Schematics ------------------ None Fabricated ------------ Nothing Alien Tech Used ----------------- None Achievements -------------- None Challenges ------------ None Game ------ Seed ScatterEnergyInterpreter Manual? 0 Play Time 00:10:32 Cumulative 440.0 hours Start 2020.08.26 @ 22:57:15 End 2020.08.26 @ 23:04:52 Sessions 1 Manual Loads 0 Difficulty Rogue Special Mode None Game No. 144 Rogue 144 Adventurer 0 Explorer 0 Win Type - Total 0 Types 0/0/0/0/0/0/0 Lore% 29 Gallery% 55 Achievement% 28 Wizard Run 0 Options --------- ASCII 0 Keyboard 1 Movement Numpad Keybinds 0 Fullscreen 2 Font 18/X11Bold Map View 76x50 Tactical HUD 1 Map Filters NONE Filters NONE Steam 1 RUN: d09417cf-a7fb-42f0-bab5-52743578a6e4